bitfinex/quotes_ETHUSD_20220311
["timestamp","ask_amount","ask_price","bid_price","bid_amount"]
[1647035982396,0.05387691,2571.7,2571.5,0.00237454]
[1647035982998,0.05387691,2571.7,2571.3,7.34]
[1647035985239,0.04861672,2571.9,2571.3,7.34]
[1647035986840,0.04861672,2571.9,2571.5,0.00430993]
[1647035987846,0.04861672,2571.9,2571.3,7.34]
[1647035988044,0.04861672,2571.9,2571.6,0.00430987]
[1647035988890,0.04861672,2571.9,2571.3,7.34]
[1647035989290,0.04861672,2571.9,2571.6,0.00430984]
[1647035990091,0.04861672,2571.9,2571.3,7.34]
[1647035990494,0.04861672,2571.9,2571.6,0.00430984]
[1647035991294,4.5,2571.8,2571.3,7.24430984]
[1647035991497,0.04861672,2571.9,2571.1,8.31226]
[1647035991694,0.04861672,2571.9,2571.6,0.00422903]
[1647035992542,0.04861672,2571.9,2571.1,7.5343]
[1647035993842,0.04861672,2571.9,2571.2,1.24907384]
[1647035994445,0.04861672,2571.9,2571.3,0.08311354]
[1647035994446,0.00087772,2571.9,2571.3,0.08311354]
[1647035995243,0.00087772,2571.9,2571.5,0.00430993]
[1647035995444,0.00087772,2571.9,2571.6,0.97209]
[1647035995642,0.00087772,2571.9,2571.6,1.05599898]
[1647035996888,0.00087772,2571.9,2571.8,0.97654211]
[1647035998593,0.00087772,2571.9,2571.8,2.22700776]
[1647036000751,0.00087772,2571.9,2571.8,0.97654211]
[1647036002252,6.3537,2572.3,2571.9,0.0005269]
[1647036002451,4.10578186,2572.4,2571.9,0.0005269]
[1647036002452,2.8631,2572.4,2571.9,0.0005269]
[1647036002656,3.90478781,2572.6,2571.9,0.0005269]
[1647036002657,3.71048781,2572.6,2571.9,1.04669892]
[1647036002854,3.71048781,2572.6,2572.1,0.97189]
[1647036003054,3.71048781,2572.6,2572.2,0.07188424]
[1647036003490,3.71048781,2572.6,2572.3,1.25230304]
[1647036003692,3.71048781,2572.6,2572.4,0.06677107]
[1647036003891,3.71048781,2572.6,2572.5,0.97166]
[1647036004293,3.71048781,2572.6,2572.5,2.22363603]
[1647036004490,3.80330161,2572.6,2572.5,2.22363603]
[1647036004892,0.0928138,2572.6,2572.5,2.22363603]
[1647036005592,0.0928138,2572.6,2572.5,2.3231855]
[1647036006492,0.00401682,2572.9,2572.6,6.0]
[1647036006695,0.00401682,2572.9,2572.7,4.70890313]
[1647036006892,0.00401682,2572.9,2572.8,4.34748451]
[1647036007147,3.66288737,2573.7,2572.9,0.08139185]
[1647036007349,0.01617329,2573.3,2573.1,0.08666228]
[1647036007546,0.01617329,2573.3,2573.2,0.98718174]
[1647036007950,0.01617329,2573.3,2573.2,2.23915777]
[1647036008145,0.01617329,2573.3,2573.2,0.98718174]
[1647036008346,2.91436,2574.0,2573.3,0.0697656]
[1647036008546,0.01617235,2573.8,2573.4,0.97137]
[1647036008746,0.01617235,2573.8,2573.7,0.97138]
[1647036009146,0.34286309,2573.8,2573.7,2.14882687]
[1647036009345,0.32669074,2573.8,2573.7,3.32627374]
[1647036009545,0.32669074,2574.0,2573.7,3.32627374]
[1647036009748,0.00404346,2573.9,2573.7,3.32627374]
[1647036009947,0.00404346,2573.9,2573.8,0.09954947]
[1647036010148,0.00404346,2573.9,2573.8,2.04211947]
[1647036010550,0.32669074,2574.0,2573.8,2.04211947]
[1647036010791,0.32669074,2574.0,2573.8,2.91382]
[1647036010995,0.33072811,2574.0,2573.9,0.97125]
[1647036011402,0.33072811,2574.0,2573.8,1.94257]
[1647036011691,0.33072811,2574.0,2573.9,0.09954947]
[1647036011890,0.32669074,2574.0,2573.9,0.09954947]
[1647036012095,0.33072809,2574.0,2573.9,0.09954947]
[1647036012695,0.00403735,2574.0,2573.9,0.09954947]
[1647036013097,1.0,2574.1,2573.9,0.09954947]
[1647036013296,1.00403733,2574.1,2573.9,0.09954947]
[1647036013495,1.00403733,2574.1,2573.8,1.94257]
[1647036013695,0.95403733,2574.1,2574.0,0.09954947]
[1647036013896,1.27978648,2574.1,2574.0,0.09954947]
[1647036014296,1.27574915,2574.1,2574.0,0.09954947]
[1647036014554,0.32574915,2574.1,2574.0,2.45444321]
[1647036014745,0.37069954,2574.1,2574.0,2.45444321]
[1647036015147,3.87069954,2574.1,2574.0,2.45444321]
[1647036015345,0.37069954,2574.1,2574.0,2.45444321]
[1647036016746,0.67069954,2574.1,2574.0,2.45444321]
[1647036016948,0.62574915,2574.1,2574.0,2.45444321]
[1647036017150,0.32574915,2574.1,2574.0,2.45444321]
[1647036018151,0.32978748,2574.2,2574.0,2.45444321]
[1647036018398,0.32662687,2574.1,2574.0,2.35489374]
[1647036019197,0.00087772,2574.1,2574.0,2.35489374]
[1647036019997,0.32662687,2574.1,2574.0,2.45444321]
[1647036020397,0.00087772,2574.1,2574.0,2.45444321]
[1647036020799,0.32662687,2574.1,2574.0,2.45444321]
[1647036021700,0.00087772,2574.1,2574.0,2.45444321]
[1647036022144,0.32662687,2574.1,2574.0,2.45444321]
[1647036022346,0.32662687,2574.1,2574.0,1.43791063]
[1647036022545,0.32662687,2574.1,2574.0,1.27699634]
[1647036022946,0.32662687,2574.1,2574.0,1.43791063]
[1647036023146,3.82662687,2574.1,2574.0,1.43791063]
[1647036023854,3.82662687,2574.1,2573.2,0.97158]
[1647036023855,16.04662687,2574.1,2573.2,0.97158]
[1647036024048,0.32574915,2574.0,2572.9,0.07833995]
[1647036024248,0.32574915,2573.9,2572.9,0.65293824]
[1647036024548,0.32574915,2573.8,2572.9,0.65293824]
[1647036024748,3.80087772,2573.8,2572.9,0.65293824]
[1647036024946,0.30610362,2573.7,2572.9,0.65293824]
[1647036025147,1.11584594,2573.5,2572.9,0.65293824]
[1647036025350,1.12103556,2573.5,2573.0,0.97166]
[1647036026293,0.00087772,2573.5,2573.0,0.97166]
[1647036026494,0.00431195,2573.4,2573.0,0.97166]
[1647036026692,0.00518967,2573.4,2573.0,0.97166]
[1647036027598,0.00087772,2573.4,2573.0,0.97166]
[1647036027797,0.00431198,2573.3,2573.0,0.97166]
[1647036027998,0.0051897,2573.3,2573.0,0.97166]
[1647036028698,0.00087772,2573.3,2573.0,0.97166]
[1647036028899,0.00518973,2573.3,2573.0,0.97166]
[1647036029298,0.00518973,2573.3,2572.8,1.94324]
[1647036029556,0.00518973,2573.3,2572.7,1.2348]
[1647036029744,0.00518973,2573.3,2572.7,2.20655]
[1647036029945,0.05054722,2573.3,2572.7,2.20655]
[1647036030148,0.00423122,2573.2,2572.7,2.20651]
[1647036030446,0.00510894,2573.2,2572.9,0.94481488]
[1647036030845,0.00510894,2573.2,2573.0,0.97165]
[1647036031045,0.00087772,2573.2,2573.0,0.97165]
[1647036031244,0.00510894,2573.2,2573.0,0.97165]
[1647036032171,0.00087772,2573.2,2573.0,0.97165]
[1647036032552,0.00510891,2573.2,2573.0,0.97165]
[1647036033152,0.00510891,2573.2,2572.8,2.13756]
[1647036033401,0.00087772,2573.2,2572.8,1.94326]
[1647036033701,0.00489042,2573.2,2572.8,1.94326]
[1647036034302,0.00489042,2573.2,2572.8,2.97255615]
[1647036034699,0.00087772,2573.2,2572.8,3.94422615]
[1647036034901,0.00401274,2573.1,2572.8,3.94422615]
[1647036035101,0.00489046,2573.1,2572.8,3.94422615]
[1647036035703,0.00489046,2573.1,2572.9,0.97161]
[1647036035903,0.00087772,2573.1,2572.9,0.97161]
[1647036036104,0.00489048,2573.1,2572.9,0.97161]
[1647036037149,0.00087772,2573.1,2572.9,1.94316]
[1647036037352,0.00492588,2573.1,2572.9,1.94316]
[1647036038052,0.00492588,2573.1,2572.9,2.13746]
[1647036038249,0.00087772,2573.1,2572.9,5.71992049]
[1647036038449,0.00087772,2573.1,2573.0,4.75767865]
[1647036038450,0.00404816,2573.1,2573.0,4.75767865]
[1647036038648,0.00492588,2573.1,2573.0,5.92338865]
[1647036038849,0.00492588,2573.1,2573.0,6.92338865]
[1647036039051,0.00492588,2573.1,2573.0,3.89438865]
[1647036039452,0.00087772,2573.1,2573.0,3.89438865]
[1647036039855,0.00087772,2573.1,2573.0,7.39438865]
[1647036040353,0.00087772,2573.1,2573.0,3.89438865]
[1647036041793,0.00087772,2573.1,2573.0,7.39438865]
[1647036042499,0.34764976,2573.8,2573.7,1.21183922]
[1647036042700,0.34764976,2573.8,2573.7,2.46520143]
[1647036043500,0.34764976,2573.8,2573.7,3.58313936]
[1647036044946,0.08960308,2574.1,2573.7,4.1778358]
[1647036045149,0.03942026,2574.3,2574.0,0.97108]
[1647036045345,0.21862641,2574.7,2574.2,6.0]
[1647036045547,3.00142333,2574.9,2574.4,6.0]
[1647036045752,2.25801432,2574.9,2574.4,6.0]
[1647036045946,0.756138,2575.0,2574.4,6.0]
[1647036046146,0.75316427,2575.5,2574.7,6.0]
[1647036046346,0.53980037,2575.9,2574.9,1.94099]
[1647036046548,0.08960307,2576.0,2575.1,0.0825113]
[1647036046746,9.54587279,2576.1,2575.3,0.07387549]
[1647036046946,0.01131503,2575.6,2575.3,0.07387549]
[1647036047153,0.01131503,2575.6,2575.4,0.91447701]
[1647036047349,0.01131503,2575.6,2575.4,1.88485701]
[1647036047750,9.54587279,2576.1,2575.4,2.18485701]
[1647036047952,9.54587279,2576.1,2575.7,0.97038]
[1647036048151,0.01131503,2576.0,2575.7,0.97038]
[1647036048695,0.01131503,2576.0,2575.7,1.94076]
[1647036048895,0.05,2576.2,2575.7,1.94076]
[1647036049095,5.83532026,2576.6,2575.8,6.0]
[1647036049298,2.96882026,2576.6,2576.3,0.97021]
[1647036049496,0.01732158,2576.4,2576.3,0.97021]
[1647036049701,2.10008122,2576.6,2576.3,0.97021]
[1647036049897,0.03942026,2576.7,2576.3,1.94038]
[1647036050097,0.03942026,2576.7,2576.4,1.06671466]
[1647036050298,0.03942026,2576.7,2576.4,3.00716466]
[1647036051699,0.04224927,2576.7,2576.4,3.00716466]
[1647036052754,0.03942026,2576.7,2576.4,3.00716466]
[1647036052952,0.04223878,2576.7,2576.4,3.00716466]
[1647036053554,0.00281852,2576.7,2576.4,3.00716466]
[1647036053754,3.76796,2577.2,2576.4,3.00716466]
[1647036053957,3.767,2577.2,2576.6,0.97025]
[1647036054154,0.00433231,2576.7,2576.6,0.97025]
[1647036054554,0.00433231,2576.7,2576.6,1.01854179]
[1647036055158,2.767,2577.2,2576.6,1.01854179]
[1647036055355,0.00433225,2576.8,2576.6,1.01854179]
[1647036056399,3.47001906,2577.2,2576.6,0.04829179]
[1647036056598,0.00433222,2576.8,2576.6,0.04829179]
[1647036057403,0.04766043,2577.1,2576.6,0.04829179]
[1647036057803,0.00402407,2576.8,2576.6,0.04829179]
[1647036058608,0.04766043,2577.1,2576.6,0.04829179]
[1647036059005,0.00402407,2576.8,2576.7,0.0331614]
[1647036059845,0.04766043,2577.1,2576.7,0.0331614]
[1647036060246,0.00402405,2576.9,2576.7,0.0331614]
[1647036060645,14.9889775,2577.2,2576.7,0.0331614]
[1647036061244,3.10839776,2577.2,2576.7,0.0331614]
[1647036062448,6.0,2577.1,2576.3,0.35702338]
[1647036062649,0.91803702,2576.9,2576.3,0.35702338]
[1647036062853,0.0487332,2576.8,2576.3,0.35702338]
[1647036063997,0.00281564,2577.0,2576.3,0.35702338]
[1647036064197,0.02834905,2576.9,2576.8,0.05013608]
[1647036065196,1.07524768,2576.9,2576.8,0.05013608]
[1647036065999,0.02834905,2576.9,2576.8,0.05013608]
[1647036069649,0.02834905,2576.9,2576.7,0.97023]
[1647036071196,0.02058573,2577.0,2576.7,0.97023]
[1647036071395,0.02058573,2577.0,2576.5,1.9404]
[1647036071893,0.01776931,2577.0,2576.5,1.9404]
[1647036072097,0.02058568,2577.0,2576.5,1.9404]
[1647036072698,0.02058568,2577.0,2576.5,2.84201137]
[1647036072899,0.02058568,2577.0,2576.5,0.90161137]
[1647036073102,0.01776931,2577.0,2576.5,0.90161137]
[1647036073599,0.00433628,2577.0,2576.5,0.90161137]
[1647036074401,6.12342156,2577.2,2576.3,1.92285069]
[1647036074652,0.00433628,2577.0,2576.4,0.00433739]
[1647036074852,0.24814758,2576.9,2576.4,0.00433739]
[1647036075453,0.24814758,2576.9,2576.2,0.90145266]
[1647036075655,0.04949478,2577.1,2576.2,0.90145266]
[1647036075853,0.25254956,2577.0,2576.4,0.00433728]
[1647036076052,0.24821339,2576.9,2576.4,0.00433728]
[1647036076655,0.04496129,2576.6,2575.9,1.9409]
[1647036076855,0.04496129,2576.6,2575.8,0.01]
[1647036077056,0.04496129,2576.6,2576.4,0.00433728]
[1647036077858,0.24877237,2576.5,2576.0,0.85944229]
[1647036078295,0.24877237,2576.5,2576.4,0.004207]
[1647036078695,0.19877237,2576.5,2576.4,0.004207]
[1647036079094,0.19877237,2576.5,2576.0,0.85944229]
[1647036079294,0.19877237,2576.5,2576.3,0.00420702]
[1647036080295,0.19877237,2576.5,2575.6,0.08915884]
[1647036080495,0.19877237,2576.5,2576.3,0.00420705]
[1647036081496,0.19877237,2576.5,2575.6,0.97064]
[1647036081697,0.19877237,2576.5,2576.3,0.00406459]
[1647036082647,0.19877237,2576.5,2576.2,0.97042]
[1647036083050,0.19877237,2576.5,2576.3,0.00406459]
[1647036083849,0.19877237,2576.5,2576.3,0.97037]
[1647036084748,0.19877237,2576.5,2576.1,1.94073]
[1647036085148,0.19877237,2576.5,2575.9,0.97052]
[1647036085449,0.19877237,2576.5,2576.2,0.00124597]
[1647036086094,0.74798035,2576.6,2576.2,0.00124597]
[1647036086293,0.04417177,2576.5,2576.0,1.97362991]
[1647036086492,1.094196,2576.5,2576.0,1.97362991]
[1647036086693,0.04417177,2576.5,2576.2,0.00405932]
[1647036086895,0.34417177,2576.5,2576.2,0.00405932]
[1647036087098,0.70301906,2576.4,2576.2,0.00405932]
[1647036087498,0.70301906,2576.4,2576.0,1.97362991]
[1647036087899,0.70301906,2576.4,2576.2,0.00405926]
[1647036088399,1.04719083,2576.5,2576.2,0.00405926]
[1647036088601,0.70301906,2576.3,2576.2,0.00405926]
[1647036088799,0.70301906,2576.4,2576.0,1.97362991]
[1647036089098,0.70301906,2576.3,2576.2,0.0040604]
[1647036089945,0.70301906,2576.3,2576.0,1.97362991]
[1647036090153,0.70301906,2576.3,2576.1,0.00406042]
[1647036090546,0.70301906,2576.4,2576.1,0.97450042]
[1647036090749,0.70301906,2576.3,2576.1,0.00406042]
[1647036091152,0.70301906,2576.3,2576.0,1.00314991]
[1647036091448,0.70301906,2576.3,2576.1,0.00406044]
[1647036092350,0.70301906,2576.3,2576.0,1.97361991]
[1647036092551,0.70301906,2576.3,2576.0,0.72453028]
[1647036093150,0.70301906,2576.3,2575.8,1.94091]
[1647036093391,0.70301906,2576.3,2576.0,2.02438539]
[1647036093593,0.70301906,2576.3,2576.0,1.94077]
[1647036093794,0.70301906,2576.4,2576.1,0.08516026]
[1647036093993,0.70301906,2576.4,2576.2,0.07325112]
[1647036095692,0.00281897,2576.5,2576.3,0.95671958]
[1647036095693,0.70583803,2576.5,2576.3,0.95671958]
[1647036095894,0.70583803,2576.5,2576.3,2.89713958]
[1647036095895,0.70301906,2576.5,2576.3,2.89713958]
[1647036096095,0.70301906,2576.7,2576.4,1.05577652]
[1647036096297,0.70301906,2576.7,2576.5,0.07372809]
[1647036096695,0.18163096,2576.9,2576.6,1.94031]
[1647036096896,0.18163096,2576.9,2576.7,0.0746588]
[1647036097148,0.18163096,2576.9,2576.8,0.07569754]
[1647036097846,0.17997508,2576.9,2576.7,1.94008]
[1647036098046,0.17997508,2576.9,2576.7,2.01830537]
[1647036098647,0.18280763,2576.9,2576.7,2.01830537]
[1647036098852,0.24531399,2576.8,2576.7,2.01830537]
[1647036099048,0.24531399,2576.8,2576.7,2.98844537]
[1647036099246,0.24531399,2576.8,2576.7,2.91022]
[1647036100051,0.24531399,2576.8,2576.7,1.94008]
[1647036102498,0.09412724,2577.0,2576.8,6.0]
[1647036102698,0.23074974,2576.9,2576.7,7.25995639]
[1647036102898,0.23074974,2576.9,2576.8,1.37228843]
[1647036103102,0.09412724,2577.0,2576.8,1.37228843]
[1647036103299,0.3079189,2577.1,2576.9,7.93968]
[1647036103498,0.3079189,2577.1,2577.0,1.37228843]
[1647036103699,0.50223244,2577.1,2577.0,1.37228843]
[1647036103897,0.45681743,2577.1,2577.0,1.37228843]
[1647036104100,0.45682037,2577.1,2577.0,1.37228843]
[1647036104297,0.00165588,2577.3,2577.1,6.0]
[1647036104554,0.00165588,2577.3,2577.1,2.79185849]
[1647036104746,0.0878791,2577.4,2577.1,3.76163849]
[1647036105945,0.0878791,2577.4,2577.1,4.73143849]
[1647036106547,0.0878791,2577.4,2577.2,0.96978]
[1647036106749,0.04412724,2577.4,2577.2,0.96978]
[1647036106946,0.04847692,2577.4,2577.2,0.96978]
[1647036107150,0.04682104,2577.4,2577.2,0.96978]
[1647036107955,0.04247136,2577.4,2577.2,0.96978]
[1647036108152,0.04682101,2577.4,2577.2,0.96978]
[1647036108595,0.04682101,2577.4,2577.3,0.64958296]
[1647036108795,0.04682101,2577.4,2577.2,0.96978]
[1647036108796,0.00600553,2577.4,2577.2,0.96978]
[1647036109195,0.00165588,2577.4,2577.2,0.96978]
[1647036109398,0.00585873,2577.4,2577.3,0.07300927]
[1647036110196,0.00420285,2577.4,2577.3,0.07300927]
[1647036110399,0.18035047,2577.5,2577.3,0.07300927]
[1647036110599,0.18455329,2577.5,2577.3,0.07300927]
[1647036110797,0.18455329,2577.5,2577.1,1.93956]
[1647036111197,0.18620917,2577.5,2577.1,1.93956]
[1647036111399,0.18455329,2577.5,2577.1,1.93956]
[1647036111599,1.00131308,2577.3,2577.1,1.93956]
[1647036111801,1.00131308,2577.3,2576.7,1.23904809]
[1647036112056,1.00131308,2577.3,2576.5,1.20216]
[1647036112057,1.35411673,2577.3,2576.5,1.20216]
[1647036112246,0.04359047,2577.2,2576.4,0.32506856]
[1647036112445,0.04359047,2577.2,2576.3,0.00420462]
[1647036112647,0.04773276,2577.0,2576.3,0.00420462]
[1647036112848,1.04408441,2576.5,2576.0,0.66474811]
[1647036113047,1.04408441,2576.5,2576.1,0.97039]
[1647036113246,1.04408441,2576.5,2576.0,0.66474811]
[1647036113247,0.0467927,2576.8,2576.3,0.00405292]
[1647036113447,0.0467927,2576.8,2576.3,1.94463292]
[1647036114050,0.0467927,2576.8,2576.3,1.94058]
[1647036114249,0.0467927,2576.8,2576.3,1.94463265]
[1647036115052,0.94054063,2576.6,2576.3,1.94463265]
[1647036115252,0.94054063,2576.6,2576.3,1.94058]
[1647036115451,0.94054063,2576.6,2576.3,0.00371137]
[1647036115794,0.98429249,2576.6,2576.3,0.00371137]
[1647036115994,0.05427245,2576.5,2576.3,0.00371137]
[1647036116395,0.05427245,2576.5,2575.7,0.25]
[1647036116595,1.0469584,2576.1,2575.7,0.57522999]
[1647036116898,1.0469584,2576.1,2575.4,7.34]
[1647036116899,1.3904405,2576.1,2575.4,7.34]
[1647036117098,0.0459707,2576.0,2575.4,7.34]
[1647036117698,0.92462774,2575.6,2575.4,7.34]
[1647036118298,1.22462774,2575.6,2575.4,7.34]
[1647036118699,1.22462774,2575.6,2575.4,7.33834412]
[1647036118897,0.04984828,2575.5,2575.4,7.33834412]
[1647036119098,0.04984828,2575.5,2575.1,0.25]
[1647036119296,0.04984828,2575.5,2575.0,7.34]
[1647036120153,0.04984828,2575.5,2575.1,0.00418178]
[1647036121154,0.89774366,2575.2,2575.0,7.34]
[1647036121361,0.05205934,2575.1,2575.0,7.34]
[1647036121557,15.3076155,2575.6,2575.0,7.34]
[1647036121558,0.04150336,2575.5,2575.0,7.34]
[1647036121958,0.04150336,2575.5,2575.0,7.29624814]
[1647036122359,0.85668833,2575.4,2575.0,7.29624814]
[1647036122660,0.05401014,2575.3,2575.1,0.00418178]
[1647036123495,0.05401014,2575.3,2574.7,7.34]
[1647036124095,0.05401014,2575.3,2575.1,0.00400812]
[1647036124295,0.05401014,2575.3,2575.2,0.03333414]
[1647036124495,0.05401014,2575.3,2575.2,0.02527019]
[1647036124695,3.1936155,2575.6,2575.2,0.02527019]
[1647036124897,0.05331887,2575.5,2575.2,0.02527019]
[1647036126096,2.8936155,2575.6,2575.2,0.02527019]
[1647036126297,0.0408155,2575.6,2575.2,0.02919982]
[1647036127249,0.0408155,2575.6,2575.2,0.02527019]
[1647036127550,0.0408155,2575.6,2575.3,0.08828384]
[1647036128350,0.0408155,2575.6,2575.4,2.52173351]
[1647036128550,0.0408155,2575.6,2575.5,0.91021757]
[1647036129352,0.0408155,2575.6,2575.5,2.27769445]
[1647036129550,0.0408155,2575.6,2575.5,2.4614851]
[1647036129751,0.0408155,2575.6,2575.5,3.11150849]
[1647036130152,0.0408155,2575.6,2575.5,7.61150849]
[1647036130352,0.0408155,2575.6,2575.5,8.08250849]
[1647036131095,0.0408155,2575.6,2575.5,4.58250849]
[1647036133405,0.0408155,2575.6,2575.5,4.77650849]
[1647036133704,0.0408155,2575.6,2575.5,2.92771784]
[1647036133904,0.0408155,2575.6,2575.5,2.93924621]
[1647036134104,0.0408155,2575.6,2575.5,1.57176933]
[1647036134552,0.0408155,2575.6,2575.5,1.63718702]
[1647036134553,0.04711661,2575.6,2575.5,1.63718702]
[1647036134744,0.04081661,2575.6,2575.5,3.00496056]
[1647036135144,0.04081661,2575.6,2575.5,3.47596056]
[1647036135748,0.04375186,2576.0,2575.6,6.0]
[1647036135945,0.04375186,2576.0,2575.8,0.97023]
[1647036136147,0.04375186,2576.0,2575.9,1.36777354]
[1647036136445,0.04375186,2576.0,2575.9,2.01768677]
[1647036136845,0.04375186,2576.0,2575.9,2.98190711]
[1647036139696,0.04375186,2576.0,2575.9,2.98025123]
[1647036141699,0.04375186,2576.0,2575.9,1.61247769]
[1647036142952,0.04375186,2576.0,2575.9,1.56872583]
[1647036144050,0.04375186,2576.0,2575.9,2.93579475]
[1647036144248,0.04375186,2576.0,2575.9,2.93603162]
[1647036144449,0.04540774,2576.5,2576.3,0.03320371]
[1647036144649,0.04540774,2576.5,2576.4,0.97028]
[1647036144850,0.04540774,2576.5,2576.4,1.8202851]
[1647036149643,0.04540774,2576.5,2576.4,1.8864801]
[1647036152455,0.04540774,2576.5,2576.4,1.8364801]
[1647036153498,0.04540774,2576.5,2576.4,0.986475]
[1647036153698,0.23609325,2576.5,2576.4,0.986475]
[1647036154799,0.23609325,2576.5,2576.4,1.01930569]
[1647036157054,0.23609325,2576.5,2576.4,0.0661716]
[1647036158650,0.23609325,2576.5,2575.9,0.60450549]
[1647036158651,0.0431484,2576.3,2575.9,0.60450549]
[1647036158851,0.19068551,2576.2,2575.9,0.60450549]
[1647036159251,0.24504877,2576.2,2575.9,0.60450549]
[1647036159551,0.19068551,2576.1,2575.9,1.57504549]
[1647036159751,0.19068551,2576.1,2575.9,0.60450549]
[1647036159950,0.19068551,2576.1,2575.9,0.60858167]
[1647036160813,0.19068551,2576.0,2575.9,0.60284961]
[1647036161214,0.19068551,2576.3,2575.9,0.60692901]
[1647036161414,1.14896044,2576.2,2575.9,0.60692901]
[1647036161619,0.19068551,2576.1,2575.9,1.57746901]
[1647036161814,0.04956183,2576.4,2575.9,1.57746901]
[1647036162014,0.19174478,2576.3,2575.9,1.57338961]
[1647036162219,0.19174478,2576.3,2575.9,0.60284961]
[1647036162418,0.19174478,2576.3,2575.9,0.60693359]
[1647036162619,0.19174478,2576.3,2576.1,0.97046]
[1647036162819,0.04356308,2576.1,2575.9,0.60693359]
[1647036163019,0.19174478,2576.0,2575.9,0.60693359]
[1647036163220,0.19174478,2576.0,2575.9,0.60284961]
[1647036163619,0.19174478,2576.0,2575.9,0.60693359]
[1647036164019,0.05096182,2576.4,2575.9,0.56318173]
[1647036164224,0.19174478,2576.3,2575.9,0.56318173]
[1647036164556,0.19174478,2576.3,2575.9,0.55909775]
[1647036164746,0.19174478,2576.3,2576.0,0.00408025]
[1647036164948,0.0398685,2576.1,2576.0,0.00408025]
[1647036165347,0.23161328,2576.1,2576.0,0.97459025]
[1647036165748,0.23161328,2576.1,2576.0,0.97051]
[1647036167154,0.00165588,2576.5,2576.3,0.97027]
[1647036167353,0.00165588,2576.5,2576.3,1.37720866]
[1647036167958,0.00165588,2576.5,2576.4,1.12959101]
[1647036169799,0.00165588,2576.5,2576.4,1.68859402]
[1647036170599,0.00165588,2576.5,2576.4,1.12959101]
[1647036172752,0.00165588,2576.5,2576.3,0.40693866]
[1647036173154,0.00165588,2576.5,2576.3,0.4110192]
[1647036173955,0.00165588,2576.5,2576.3,0.40693866]
[1647036174157,0.05458378,2576.5,2576.3,0.40693866]
[1647036174354,0.00165588,2576.5,2576.3,0.41101922]
[1647036175155,0.00165588,2576.5,2576.4,0.04592292]
[1647036175555,0.04960429,2576.5,2576.4,0.04592292]
[1647036177601,0.00165588,2576.5,2576.4,0.04592292]
[1647036179106,0.00065936,2576.5,2576.4,0.04592292]
[1647036179559,0.04287273,2576.5,2576.4,0.04592292]
[1647036179755,0.04287273,2576.5,2576.3,0.45694213]
[1647036180049,0.04287273,2576.5,2576.3,0.45286158]
[1647036180250,0.04287273,2576.5,2576.3,0.45694213]
[1647036181252,0.04287273,2576.5,2576.3,0.45286158]
[1647036181449,0.04287273,2576.5,2576.3,0.45694216]
[1647036181851,0.04287273,2576.5,2576.3,0.45528628]
[1647036182456,0.04287273,2576.5,2576.3,0.4512057]
[1647036182756,0.04287273,2576.5,2576.3,0.45528628]
[1647036183698,0.04287273,2576.5,2576.3,0.4512057]
[1647036183898,0.04287273,2576.5,2576.3,0.45528628]
[1647036184806,0.04287273,2576.5,2576.3,0.4512057]
[1647036185207,0.04287273,2576.5,2576.3,0.45528628]
[1647036185403,0.75298594,2576.5,2576.3,0.45528628]
[1647036186005,0.04287273,2576.5,2576.3,0.4512057]
[1647036186408,0.04287273,2576.5,2576.3,0.45528628]
[1647036187059,0.18906202,2576.4,2576.3,0.45528628]
[1647036187253,0.18906202,2576.4,2576.3,0.4512057]
[1647036187454,0.18906202,2576.4,2576.3,1.8338982]
[1647036188152,0.00065936,2576.5,2576.3,0.45528628]
[1647036188353,0.18972138,2576.5,2576.3,0.45528628]
[1647036188554,0.18972138,2576.5,2576.3,0.4512057]
[1647036189958,0.18972138,2576.5,2576.3,0.45528628]
[1647036190558,0.18972138,2576.5,2576.3,1.42567628]
[1647036190798,0.18972138,2576.5,2576.3,1.4215957]
[1647036191202,0.18972138,2576.5,2576.3,1.42567628]
[1647036191399,0.18972138,2576.5,2576.4,1.38041273]
[1647036192806,0.18972138,2576.5,2576.3,2.31494405]
[1647036193207,0.18972138,2576.5,2576.3,2.3108635]
[1647036193407,0.18972138,2576.5,2576.3,1.4215957]
[1647036193607,0.18972138,2576.5,2576.3,1.42567628]
[1647036193809,0.18972138,2576.5,2576.4,1.38056586]
[1647036195056,0.18972138,2576.5,2576.4,1.42648878]
[1647036198402,0.1905991,2576.5,2576.4,1.42648878]
[1647036200107,0.1905991,2576.5,2576.4,0.04592292]
[1647036200408,0.1905991,2576.5,2576.4,1.42730311]
[1647036200606,0.14147682,2576.5,2576.4,0.04592292]
[1647036202857,0.14147682,2576.5,2576.4,0.04426704]
[1647036203858,0.14147682,2576.5,2576.3,2.3962449]
[1647036204066,0.14147682,2576.5,2576.0,0.55907406]
[1647036204067,6.0,2576.3,2576.0,0.55907406]
[1647036204257,0.7619194,2576.2,2576.0,0.55907406]
[1647036204458,0.71304803,2576.1,2576.0,0.55907406]
[1647036204658,0.92179227,2576.1,2576.0,0.55907406]
[1647036205259,1.6348403,2576.1,2576.0,0.55907406]
[1647036205459,0.92179227,2576.1,2576.0,0.55907406]
[1647036207107,0.00087772,2576.1,2576.0,0.55907406]
[1647036207308,0.05345999,2576.1,2576.0,0.55907406]
[1647036208508,0.05345999,2576.1,2575.9,0.68301759]
[1647036208509,0.35345999,2576.1,2575.9,0.68301759]
[1647036208709,0.05345999,2576.1,2575.9,0.68301759]
[1647036208913,0.05345999,2576.1,2575.9,0.67865323]
[1647036209112,0.05345999,2576.1,2575.9,0.68301762]
[1647036209950,0.07991294,2576.1,2575.9,0.68301762]
[1647036210152,0.07991294,2576.1,2575.9,0.67865323]
[1647036210352,0.07991294,2576.1,2575.9,0.68301762]
[1647036211352,0.07991294,2576.1,2575.9,0.67865323]
[1647036211552,0.07991294,2576.1,2575.9,0.68301762]
[1647036212556,0.07991294,2576.1,2575.9,0.67865323]
[1647036212756,0.07991294,2576.1,2575.9,0.68288669]
[1647036213158,1.10491294,2576.1,2575.9,0.00423346]
[1647036213409,0.76476479,2576.0,2575.9,0.00423346]
[1647036213610,1.23664251,2576.0,2575.9,0.01863361]
[1647036213805,0.47187772,2576.0,2575.9,0.01440015]
[1647036214006,12.39187772,2576.0,2575.9,0.01863361]
[1647036214410,11.92,2575.8,2575.6,0.47946939]
[1647036214613,12.63325819,2575.8,2575.6,0.47946939]
[1647036214813,12.93325819,2575.8,2575.6,0.47946939]
[1647036215014,12.92,2575.7,2575.6,0.47946939]
[1647036215313,12.92,2575.7,2575.0,0.3879]
[1647036215314,16.13325819,2575.7,2575.0,0.3879]
[1647036215513,16.13325819,2575.7,2575.0,0.32650439]
[1647036215714,0.80531654,2575.2,2575.0,0.32650439]
[1647036215915,1.72279426,2575.2,2575.0,0.32650439]
[1647036216322,1.72279426,2575.2,2575.0,0.32773966]
[1647036217161,2.02279426,2575.2,2575.0,0.32773966]
[1647036217362,2.02279426,2575.2,2575.0,0.32650439]
[1647036217558,2.02279426,2575.2,2575.0,0.00123527]